[Event "*** Titled Tuesday 3|2 Blitz"]
[Site "Chess.com"]
[Date "2016.03.01"]
[Round "9"]
[White "Winehouse83"]
[Black "Rickstereo"]
[Result "1-0"]
[WhiteElo "2366"]
[BlackElo "2182"]
[TimeControl "180+2"]
[EndTime "13:35:00 PST"]
[Termination "Winehouse83 won by resignation"]

1. d4 {[%clk 0:03:01.1]} 1... Nf6 {[%clk 0:03:00.4]} 2. c4 {[%clk 0:03:00.9]}
2... g6 {[%clk 0:03:00.9]} 3. Nc3 {[%clk 0:03:00.9]} 3... d5 {[%clk 0:03:01.2]}
4. Nf3 {[%clk 0:03:00.9]} 4... Bg7 {[%clk 0:03:01.7]} 5. Bf4 {[%clk 0:03:02.4]}
5... O-O {[%clk 0:02:55.5]} 6. Rc1 {[%clk 0:03:02.6]} 6... c5 {[%clk 0:02:52.2]}
7. dxc5 {[%clk 0:02:59.2]} 7... Qa5 {[%clk 0:02:45.2]} 8. cxd5 {[%clk
0:02:58.7]} 8... Ne4 {[%clk 0:02:14.5]} 9. Be5 {[%clk 0:02:34]} 9... Nxc3 {[%clk
0:02:14.5]} 10. Bxc3 {[%clk 0:02:29.1]} 10... Bxc3+ {[%clk 0:02:14.4]} 11. Rxc3
{[%clk 0:02:18.5]} 11... Qxa2 {[%clk 0:02:12.6]} 12. Qc1 {[%clk 0:02:18.2]}
12... Qxd5 {[%clk 0:02:12]} 13. e3 {[%clk 0:02:17.4]} 13... Nc6 {[%clk
0:02:10.8]} 14. Bc4 {[%clk 0:02:15.8]} 14... Qe4 {[%clk 0:02:04.9]} 15. O-O
{[%clk 0:02:14.5]} 15... Bg4 {[%clk 0:02:05]} 16. Ng5 {[%clk 0:01:46.4]} 16...
Qe5 {[%clk 0:01:55.2]} 17. f4 {[%clk 0:01:47]} 17... Qc7 {[%clk 0:01:48.3]} 18.
h3 {[%clk 0:01:47.3]} 18... Bd7 {[%clk 0:01:44.1]} 19. Rd1 {[%clk 0:01:44.2]}
19... Rad8 {[%clk 0:01:32.4]} 20. Qa1 {[%clk 0:01:30.4]} 20... h6 {[%clk
0:01:28]} 21. Nf3 {[%clk 0:01:19.7]} 21... Bf5 {[%clk 0:01:17.5]} 22. Nh4 {[%clk
0:01:13.4]} 22... Be4 {[%clk 0:01:15.5]} 23. Rxd8 {[%clk 0:01:09]} 23... Rxd8
{[%clk 0:01:11.3]} 24. Qe1 {[%clk 0:01:09.6]} 24... Kg7 {[%clk 0:00:56.4]} 25.
Qg3 {[%clk 0:01:08.7]} 25... Rd2 {[%clk 0:00:53.3]} 26. b3 {[%clk 0:00:52.2]}
26... Qa5 {[%clk 0:00:47.2]} 27. Rc1 {[%clk 0:00:48.7]} 27... Qxc5 {[%clk
0:00:47.7]} 28. f5 {[%clk 0:00:42]} 28... b5 {[%clk 0:00:40.6]} 29. fxg6 {[%clk
0:00:37.9]} 29... fxg6 {[%clk 0:00:40.6]} 30. Qf4 {[%clk 0:00:34.8]} 30... Bd5
{[%clk 0:00:18.5]} 31. Rf1 {[%clk 0:00:22.2]} 31... e5 {[%clk 0:00:15.7]} 32.
Qf6+ {[%clk 0:00:21.9]} 1-0

[Event "*** Titled Tuesday 3|2 Blitz"]
[Site "Chess.com"]
[Date "2016.03.01"]
[Round "9"]
[White "Saitama_Hero"]
[Black "spectralsoul"]
[Result "1-0"]
[WhiteElo "2129"]
[BlackElo "2540"]
[TimeControl "180+2"]
[EndTime "13:35:10 PST"]
[Termination "Saitama_Hero won on time"]

1. d4 {[%clk 0:03:01.9]} 1... c5 {[%clk 0:03:01.8]} 2. d5 {[%clk 0:03:01.9]}
2... Nf6 {[%clk 0:03:00.7]} 3. c4 {[%clk 0:03:03.1]} 3... e6 {[%clk 0:03:01.7]}
4. Nc3 {[%clk 0:03:02.6]} 4... exd5 {[%clk 0:03:03.1]} 5. cxd5 {[%clk
0:03:04.5]} 5... g6 {[%clk 0:03:04.6]} 6. e4 {[%clk 0:03:05.6]} 6... d6 {[%clk
0:03:06.1]} 7. f4 {[%clk 0:03:06.7]} 7... Bg7 {[%clk 0:03:07.3]} 8. Bb5+ {[%clk
0:03:07.1]} 8... Nfd7 {[%clk 0:03:08.3]} 9. a4 {[%clk 0:03:07.4]} 9... O-O
{[%clk 0:03:09.3]} 10. Nf3 {[%clk 0:03:07.5]} 10... Na6 {[%clk 0:03:06.5]} 11.
O-O {[%clk 0:03:08.5]} 11... Nc7 {[%clk 0:03:06.7]} 12. Bc4 {[%clk 0:03:05.3]}
12... Nb6 {[%clk 0:03:04.5]} 13. Ba2 {[%clk 0:03:03.9]} 13... Bg4 {[%clk
0:03:05.6]} 14. a5 {[%clk 0:02:57.3]} 14... Nd7 {[%clk 0:03:03.9]} 15. h3 {[%clk
0:02:58.8]} 15... Bxf3 {[%clk 0:03:04.8]} 16. Qxf3 {[%clk 0:03:00.3]} 16... b5
{[%clk 0:03:06]} 17. axb6 {[%clk 0:02:46.4]} 17... axb6 {[%clk 0:03:06.8]} 18.
Be3 {[%clk 0:02:45.9]} 18... Kh8 {[%clk 0:02:53.5]} 19. e5 {[%clk 0:02:28.2]}
19... dxe5 {[%clk 0:02:46.3]} 20. d6 {[%clk 0:02:29.5]} 20... Ne6 {[%clk
0:02:38.2]} 21. f5 {[%clk 0:02:29.5]} 21... Nd4 {[%clk 0:02:38.7]} 22. Bxd4
{[%clk 0:01:52.4]} 22... exd4 {[%clk 0:02:38.4]} 23. Ne4 {[%clk 0:01:52.4]}
23... Qh4 {[%clk 0:02:06.8]} 24. f6 {[%clk 0:01:23.6]} 24... Bh6 {[%clk
0:02:01.8]} 25. Bd5 {[%clk 0:01:08.1]} 25... Ra5 {[%clk 0:01:19.2]} 26. Rxa5
{[%clk 0:01:03.7]} 26... bxa5 {[%clk 0:01:21.1]} 27. Qb3 {[%clk 0:00:47.3]}
27... Bf4 {[%clk 0:00:58.1]} 28. Qb7 {[%clk 0:00:43.8]} 28... Ne5 {[%clk
0:00:26.5]} 29. Qe7 {[%clk 0:00:44.2]} 29... Rg8 {[%clk 0:00:15.6]} 30. d7
{[%clk 0:00:42.7]} 30... Be3+ {[%clk 0:00:12.5]} 31. Kh1 {[%clk 0:00:40.4]}
31... Nxd7 {[%clk 0:00:10.2]} 32. Qxd7 {[%clk 0:00:38.1]} 32... Rf8 {[%clk
0:00:08.3]} 33. Qe7 {[%clk 0:00:34.3]} 33... Bh6 {[%clk 0:00:06.8]} 34. Nd6
{[%clk 0:00:32.6]} 1-0

[Event "*** Titled Tuesday 3|2 Blitz"]
[Site "Chess.com"]
[Date "2016.03.01"]
[Round "9"]
[White "BahadirOzen"]
[Black "VerdeNotte"]
[Result "0-1"]
[WhiteElo "2540"]
[BlackElo "2559"]
[TimeControl "180+2"]
[EndTime "13:35:15 PST"]
[Termination "VerdeNotte won by resignation"]

1. Nf3 {[%clk 0:03:01.9]} 1... d6 {[%clk 0:03:00]} 2. d4 {[%clk 0:03:01.9]} 2...
Nc6 {[%clk 0:03:00.1]} 3. g3 {[%clk 0:02:54.9]} 3... e5 {[%clk 0:02:56.9]} 4.
dxe5 {[%clk 0:02:55.3]} 4... Nxe5 {[%clk 0:02:56.5]} 5. Bg2 {[%clk 0:02:35.5]}
5... Nxf3+ {[%clk 0:02:31.2]} 6. Bxf3 {[%clk 0:02:35.3]} 6... Nf6 {[%clk
0:02:29.8]} 7. O-O {[%clk 0:02:34]} 7... Bh3 {[%clk 0:02:30.5]} 8. Re1 {[%clk
0:02:33.5]} 8... d5 {[%clk 0:02:31.6]} 9. c4 {[%clk 0:02:26.9]} 9... c6 {[%clk
0:02:16.2]} 10. cxd5 {[%clk 0:02:27]} 10... Nxd5 {[%clk 0:02:17.5]} 11. Qb3
{[%clk 0:01:59.9]} 11... Qb6 {[%clk 0:02:08.2]} 12. Nc3 {[%clk 0:01:40]} 12...
Bc5 {[%clk 0:02:00.1]} 13. Qxb6 {[%clk 0:01:38.1]} 13... Nxb6 {[%clk 0:02:01.7]}
14. Ne4 {[%clk 0:01:08.1]} 14... Bb4 {[%clk 0:02:01.8]} 15. Rd1 {[%clk
0:01:09.2]} 15... O-O {[%clk 0:02:00.4]} 16. b3 {[%clk 0:00:54.2]} 16... Nd5
{[%clk 0:01:57.7]} 17. Bb2 {[%clk 0:00:52.1]} 17... Rfe8 {[%clk 0:01:57.9]} 18.
a3 {[%clk 0:00:51.3]} 18... Bf8 {[%clk 0:01:57.7]} 19. Ng5 {[%clk 0:00:43.6]}
19... Bc8 {[%clk 0:01:45.2]} 20. e4 {[%clk 0:00:22.6]} 20... Nc7 {[%clk
0:01:44.7]} 21. Bg2 {[%clk 0:00:20.8]} 21... Ne6 {[%clk 0:01:44.9]} 22. Nf3
{[%clk 0:00:20.4]} 22... Nc5 {[%clk 0:01:43.2]} 23. Nd2 {[%clk 0:00:20.3]} 23...
Bg4 {[%clk 0:01:42.8]} 24. f3 {[%clk 0:00:21.4]} 24... Be6 {[%clk 0:01:43.9]}
25. b4 {[%clk 0:00:23]} 25... Nd3 {[%clk 0:01:44.4]} 26. Bd4 {[%clk 0:00:23]}
26... a5 {[%clk 0:01:44.3]} 27. Bf1 {[%clk 0:00:23.1]} 27... axb4 {[%clk
0:01:40.1]} 28. Bxd3 {[%clk 0:00:23.8]} 28... Red8 {[%clk 0:01:41.6]} 29. axb4
{[%clk 0:00:10.3]} 29... Rxa1 {[%clk 0:01:41.7]} 30. Bxa1 {[%clk 0:00:09.1]}
30... Rxd3 {[%clk 0:01:42.7]} 31. Kf2 {[%clk 0:00:10.7]} 31... Bxb4 {[%clk
0:01:43.2]} 32. Ke2 {[%clk 0:00:11.9]} 32... Rd8 {[%clk 0:01:42.8]} 33. Bb2
{[%clk 0:00:06.3]} 33... b5 {[%clk 0:01:42.1]} 34. g4 {[%clk 0:00:04.2]} 34...
c5 {[%clk 0:01:41.1]} 35. Bc1 {[%clk 0:00:02.5]} 35... c4 {[%clk 0:01:40.9]} 36.
Nb1 {[%clk 0:00:04.1]} 36... Rxd1 {[%clk 0:01:38.9]} 37. Kxd1 {[%clk 0:00:06]}
37... Bc5 {[%clk 0:01:40.1]} 38. Nc3 {[%clk 0:00:04.9]} 38... b4 {[%clk
0:01:41.3]} 39. Na4 {[%clk 0:00:06.5]} 39... Bd6 {[%clk 0:01:41.8]} 40. Bd2
{[%clk 0:00:05.5]} 40... c3 {[%clk 0:01:42.6]} 41. Nxc3 {[%clk 0:00:07]} 41...
bxc3 {[%clk 0:01:43.7]} 42. Bxc3 {[%clk 0:00:08.9]} 42... Bxh2 {[%clk
0:01:44.8]} 43. Ke2 {[%clk 0:00:10.8]} 43... g5 {[%clk 0:01:45.4]} 44. Bf6
{[%clk 0:00:10.5]} 44... Bf4 {[%clk 0:01:46.5]} 45. Kd3 {[%clk 0:00:11.9]} 45...
h6 {[%clk 0:01:47.8]} 46. Ke2 {[%clk 0:00:13]} 46... Kh7 {[%clk 0:01:49.1]} 47.
Kf2 {[%clk 0:00:14.5]} 47... Kg6 {[%clk 0:01:50.5]} 48. Bd4 {[%clk 0:00:16.1]}
48... h5 {[%clk 0:01:51.6]} 49. gxh5+ {[%clk 0:00:18]} 49... Kxh5 {[%clk
0:01:53]} 50. Bf6 {[%clk 0:00:19.5]} 50... Kh4 {[%clk 0:01:53.8]} 51. Be7 {[%clk
0:00:20.2]} 51... Kh3 {[%clk 0:01:53.6]} 52. Bf6 {[%clk 0:00:21.3]} 52... Bg3+
{[%clk 0:01:53.1]} 53. Ke3 {[%clk 0:00:22.7]} 53... Bh4 {[%clk 0:01:54.3]} 54.
Be5 {[%clk 0:00:22]} 54... Kg2 {[%clk 0:01:54.9]} 55. Bf6 {[%clk 0:00:20.6]}
55... Bf2+ {[%clk 0:01:49.9]} 56. Kd3 {[%clk 0:00:17.2]} 56... Kxf3 {[%clk
0:01:50.7]} 57. Bxg5 {[%clk 0:00:18.3]} 57... Bc8 {[%clk 0:01:51.8]} 58. e5
{[%clk 0:00:16.5]} 58... Ba6+ {[%clk 0:01:52.8]} 59. Kd2 {[%clk 0:00:17.6]}
59... Ke4 {[%clk 0:01:53.9]} 0-1

[Event "*** Titled Tuesday 3|2 Blitz"]
[Site "Chess.com"]
[Date "2016.03.01"]
[Round "9"]
[White "Tirantes"]
[Black "oskariot"]
[Result "0-1"]
[WhiteElo "2199"]
[BlackElo "2309"]
[TimeControl "180+2"]
[EndTime "13:35:37 PST"]
[Termination "oskariot won on time"]

1. c4 {[%clk 0:02:47.4]} 1... c5 {[%clk 0:03:00]} 2. Nf3 {[%clk 0:02:45.7]} 2...
Nf6 {[%clk 0:03:01.6]} 3. e3 {[%clk 0:02:46.5]} 3... d5 {[%clk 0:03:03]} 4. d4
{[%clk 0:02:46.7]} 4... e6 {[%clk 0:03:03.2]} 5. cxd5 {[%clk 0:02:45]} 5... Nxd5
{[%clk 0:03:03.1]} 6. Nc3 {[%clk 0:02:44.8]} 6... Nxc3 {[%clk 0:03:03.7]} 7.
bxc3 {[%clk 0:02:44.8]} 7... Be7 {[%clk 0:03:04.7]} 8. Bd3 {[%clk 0:02:43.7]}
8... O-O {[%clk 0:03:06.2]} 9. O-O {[%clk 0:02:41.9]} 9... Nd7 {[%clk
0:03:07.8]} 10. e4 {[%clk 0:02:40.8]} 10... cxd4 {[%clk 0:03:07.6]} 11. cxd4
{[%clk 0:02:41.1]} 11... b6 {[%clk 0:03:09.2]} 12. Bb2 {[%clk 0:02:36.2]} 12...
Bb7 {[%clk 0:03:10.3]} 13. Qe2 {[%clk 0:02:35.7]} 13... Rc8 {[%clk 0:03:11.4]}
14. Rad1 {[%clk 0:02:35.8]} 14... Bd6 {[%clk 0:03:04.7]} 15. h4 {[%clk 0:02:28]}
15... h6 {[%clk 0:03:01.3]} 16. Rfe1 {[%clk 0:02:23.1]} 16... Qe7 {[%clk
0:02:57]} 17. Qe3 {[%clk 0:02:17.8]} 17... e5 {[%clk 0:02:49.3]} 18. Bb5 {[%clk
0:02:07.6]} 18... Bc6 {[%clk 0:02:27.5]} 19. Ba6 {[%clk 0:02:07.5]} 19... Rcd8
{[%clk 0:02:19.5]} 20. dxe5 {[%clk 0:01:49.4]} 20... Nxe5 {[%clk 0:02:13]} 21.
Qc3 {[%clk 0:01:46.9]} 21... Nxf3+ {[%clk 0:02:08]} 22. gxf3 {[%clk 0:01:43.5]}
22... Qf6 {[%clk 0:01:43.5]} 23. Qxf6 {[%clk 0:01:08.7]} 23... gxf6 {[%clk
0:01:43.8]} 24. Bxf6 {[%clk 0:01:07.2]} 24... Rd7 {[%clk 0:01:44.9]} 25. Rc1
{[%clk 0:00:56.9]} 25... Ba4 {[%clk 0:01:44.3]} 26. Rc4 {[%clk 0:00:52.6]} 26...
b5 {[%clk 0:01:42.8]} 27. Rd4 {[%clk 0:00:49.8]} 27... b4 {[%clk 0:01:39.4]} 28.
Rc1 {[%clk 0:00:24.8]} 28... Bf4 {[%clk 0:01:14]} 29. Rxd7 {[%clk 0:00:22]}
29... Bxd7 {[%clk 0:01:15.9]} 30. Rd1 {[%clk 0:00:20.3]} 30... Be6 {[%clk
0:01:16.1]} 31. Rd4 {[%clk 0:00:16.2]} 31... Rb8 {[%clk 0:01:05]} 32. e5 {[%clk
0:00:16.6]} 32... Bc1 {[%clk 0:01:05.2]} 33. f4 {[%clk 0:00:14.1]} 33... Bxa2
{[%clk 0:01:02.5]} 34. f5 {[%clk 0:00:14]} 34... Kh7 {[%clk 0:00:53.4]} 35. Kf1
{[%clk 0:00:10.6]} 35... h5 {[%clk 0:00:49.2]} 36. Rd7 {[%clk 0:00:08.7]} 36...
Rb6 {[%clk 0:00:44.3]} 37. Rxa7 {[%clk 0:00:07.6]} 37... Rxa6 {[%clk 0:00:45.1]}
38. Rxa6 {[%clk 0:00:07.8]} 38... Bc4+ {[%clk 0:00:46.1]} 39. Ke1 {[%clk
0:00:07.6]} 39... Bxa6 {[%clk 0:00:48]} 40. e6 {[%clk 0:00:07.3]} 40... fxe6
{[%clk 0:00:46.1]} 41. fxe6 {[%clk 0:00:07.8]} 41... Kg6 {[%clk 0:00:42.1]} 42.
e7 {[%clk 0:00:08.3]} 42... Kf7 {[%clk 0:00:43]} 43. Kd1 {[%clk 0:00:08.5]}
43... Bf4 {[%clk 0:00:40.9]} 44. f3 {[%clk 0:00:03.4]} 44... Bb5 {[%clk
0:00:38.6]} 0-1

[Event "*** Titled Tuesday 3|2 Blitz"]
[Site "Chess.com"]
[Date "2016.03.01"]
[Round "9"]
[White "Alexander_Donchenko"]
[Black "Dlugy"]
[Result "0-1"]
[WhiteElo "2586"]
[BlackElo "2606"]
[TimeControl "180+2"]
[EndTime "13:37:45 PST"]
[Termination "Dlugy won by resignation"]

1. d4 {[%clk 0:03:01.9]} 1... Nf6 {[%clk 0:03:00.4]} 2. c4 {[%clk 0:03:02.6]}
2... g6 {[%clk 0:03:01.8]} 3. g3 {[%clk 0:03:03.6]} 3... Bg7 {[%clk 0:03:02.9]}
4. Bg2 {[%clk 0:03:05.2]} 4... O-O {[%clk 0:03:04.7]} 5. Nc3 {[%clk 0:03:06.6]}
5... d6 {[%clk 0:03:06.4]} 6. Nf3 {[%clk 0:03:08.1]} 6... c6 {[%clk 0:03:08]} 7.
O-O {[%clk 0:03:09.3]} 7... Qa5 {[%clk 0:03:09.6]} 8. e4 {[%clk 0:03:10.1]} 8...
e5 {[%clk 0:03:10.7]} 9. h3 {[%clk 0:03:00.9]} 9... Nbd7 {[%clk 0:03:09.8]} 10.
Re1 {[%clk 0:03:00.3]} 10... exd4 {[%clk 0:03:09.5]} 11. Nxd4 {[%clk 0:03:01.1]}
11... Ne5 {[%clk 0:03:11.1]} 12. Bf1 {[%clk 0:03:02.3]} 12... Re8 {[%clk
0:03:12.6]} 13. Be3 {[%clk 0:02:47.6]} 13... c5 {[%clk 0:03:13.8]} 14. Nb3
{[%clk 0:02:47.1]} 14... Qb4 {[%clk 0:03:14.1]} 15. a3 {[%clk 0:02:47.9]} 15...
Qb6 {[%clk 0:03:15.2]} 16. Kg2 {[%clk 0:02:45.5]} 16... Qd8 {[%clk 0:02:59.7]}
17. Nd2 {[%clk 0:02:38.5]} 17... Nc6 {[%clk 0:02:48.7]} 18. Qc2 {[%clk
0:02:35.5]} 18... Nd7 {[%clk 0:02:44.6]} 19. Nf3 {[%clk 0:02:29.7]} 19... Nde5
{[%clk 0:02:45]} 20. Qd1 {[%clk 0:02:22.4]} 20... Nxf3 {[%clk 0:02:45]} 21. Qxf3
{[%clk 0:02:24.3]} 21... Nd4 {[%clk 0:02:45.7]} 22. Qd1 {[%clk 0:02:25.8]} 22...
Bd7 {[%clk 0:02:43.3]} 23. Rb1 {[%clk 0:02:25.4]} 23... Bc6 {[%clk 0:02:44.2]}
24. f3 {[%clk 0:02:22.2]} 24... f5 {[%clk 0:02:43.7]} 25. Bd3 {[%clk 0:02:19.8]}
25... Nxf3 {[%clk 0:02:34.7]} 26. Qxf3 {[%clk 0:02:10.4]} 26... Bxc3 {[%clk
0:02:36.2]} 27. bxc3 {[%clk 0:02:03.4]} 27... fxe4 {[%clk 0:02:37.3]} 28. Qf1
{[%clk 0:01:54.6]} 28... Rf8 {[%clk 0:02:22.6]} 29. Qg1 {[%clk 0:01:26]} 29...
exd3+ {[%clk 0:02:22.8]} 30. Kh2 {[%clk 0:01:26.8]} 30... Qf6 {[%clk 0:02:13.9]}
31. Rf1 {[%clk 0:01:16.4]} 31... Qxc3 {[%clk 0:02:12]} 32. Bf4 {[%clk
0:01:05.4]} 32... Rae8 {[%clk 0:02:04.5]} 33. Rf2 {[%clk 0:01:00.3]} 33... Re2
{[%clk 0:02:03.8]} 34. Rf1 {[%clk 0:00:56.1]} 34... Qd4 {[%clk 0:01:30]} 35. h4
{[%clk 0:00:37.9]} 35... h5 {[%clk 0:01:16.2]} 36. Kh3 {[%clk 0:00:33.9]} 36...
Rf5 {[%clk 0:01:10.6]} 37. Kh2 {[%clk 0:00:21.3]} 37... a6 {[%clk 0:01:10.6]}
38. Kh3 {[%clk 0:00:21.5]} 38... b5 {[%clk 0:01:11.7]} 39. cxb5 {[%clk
0:00:21.4]} 39... axb5 {[%clk 0:01:13]} 40. Kh2 {[%clk 0:00:20.5]} 40... c4
{[%clk 0:00:58.1]} 41. Rxe2 {[%clk 0:00:11.6]} 41... Qxg1+ {[%clk 0:00:57.5]}
42. Kxg1 {[%clk 0:00:13.5]} 42... dxe2 {[%clk 0:00:59]} 43. Rc1 {[%clk
0:00:13.2]} 43... d5 {[%clk 0:00:43.8]} 44. Kf2 {[%clk 0:00:11.5]} 44... d4
{[%clk 0:00:45.3]} 45. Kxe2 {[%clk 0:00:12.8]} 45... Kf7 {[%clk 0:00:37.7]} 46.
Rd1 {[%clk 0:00:12.1]} 46... Rd5 {[%clk 0:00:38.1]} 47. Kd2 {[%clk 0:00:12.5]}
47... Bd7 {[%clk 0:00:38.2]} 48. Re1 {[%clk 0:00:11]} 48... c3+ {[%clk
0:00:34.6]} 49. Kc2 {[%clk 0:00:12.1]} 49... Bf5+ {[%clk 0:00:35]} 50. Kb3
{[%clk 0:00:13.5]} 50... Rc5 {[%clk 0:00:16.9]} 51. Re5 {[%clk 0:00:12.4]} 51...
Rxe5 {[%clk 0:00:15.5]} 52. Bxe5 {[%clk 0:00:14.3]} 52... c2 {[%clk 0:00:17.3]}
53. Kb2 {[%clk 0:00:15]} 53... d3 {[%clk 0:00:19.2]} 54. Bf4 {[%clk 0:00:15.9]}
54... Ke6 {[%clk 0:00:21.1]} 55. Kc1 {[%clk 0:00:16.9]} 55... Kd5 {[%clk
0:00:23]} 56. Kd2 {[%clk 0:00:17.5]} 56... Kc4 {[%clk 0:00:24.9]} 57. Bd6 {[%clk
0:00:15.3]} 57... Kb3 {[%clk 0:00:24.8]} 58. Kc1 {[%clk 0:00:16.6]} 58... Kc3
{[%clk 0:00:25.5]} 59. Be5+ {[%clk 0:00:17.9]} 59... Kc4 {[%clk 0:00:27.2]} 60.
Kd2 {[%clk 0:00:18.8]} 60... Kd5 {[%clk 0:00:28.9]} 61. Bc7 {[%clk 0:00:18.5]}
61... Ke4 {[%clk 0:00:30.8]} 62. Bd6 {[%clk 0:00:19.2]} 62... Be6 {[%clk
0:00:32.7]} 63. Bc7 {[%clk 0:00:19.4]} 63... Bc4 {[%clk 0:00:34.3]} 64. Bd6
{[%clk 0:00:20.3]} 64... Kf3 {[%clk 0:00:36.2]} 65. Bc7 {[%clk 0:00:21.4]} 65...
Ke4 {[%clk 0:00:37.2]} 66. Bd6 {[%clk 0:00:22.6]} 66... Bd5 {[%clk 0:00:38.5]}
67. Bc7 {[%clk 0:00:23.6]} 67... Be6 {[%clk 0:00:40.4]} 68. Bd6 {[%clk
0:00:24.6]} 68... Kd5 {[%clk 0:00:41.3]} 69. Be7 {[%clk 0:00:25.6]} 69... Bf5
{[%clk 0:00:42.8]} 70. Bf8 {[%clk 0:00:25.3]} 70... Kc4 {[%clk 0:00:44.1]} 71.
Bd6 {[%clk 0:00:24.7]} 71... Kb3 {[%clk 0:00:45.5]} 72. Kc1 {[%clk 0:00:25.9]}
72... Ka2 {[%clk 0:00:46.6]} 73. Bb4 {[%clk 0:00:16.2]} 73... Be4 {[%clk
0:00:47.6]} 74. Be7 {[%clk 0:00:03.7]} 74... d2+ {[%clk 0:00:48.1]} 75. Kxd2
{[%clk 0:00:05.1]} 75... Kb1 {[%clk 0:00:49.9]} 0-1

[Event "*** Titled Tuesday 3|2 Blitz"]
[Site "Chess.com"]
[Date "2016.03.01"]
[Round "9"]
[White "GianmarcoVaR"]
[Black "Spas_Kozhuharov"]
[Result "1/2-1/2"]
[WhiteElo "2356"]
[BlackElo "2440"]
[TimeControl "180+2"]
[EndTime "13:37:50 PST"]
[Termination "Game drawn - insufficient material"]

1. d4 {[%clk 0:02:56.5]} 1... d5 {[%clk 0:02:59.3]} 2. c4 {[%clk 0:02:57.3]}
2... dxc4 {[%clk 0:03:00]} 3. e3 {[%clk 0:02:46.6]} 3... Nf6 {[%clk 0:02:59.8]}
4. Bxc4 {[%clk 0:02:47.9]} 4... e6 {[%clk 0:02:57.7]} 5. Nf3 {[%clk 0:02:47.1]}
5... c5 {[%clk 0:02:57.4]} 6. O-O {[%clk 0:02:48.6]} 6... Nc6 {[%clk 0:02:58.5]}
7. Qe2 {[%clk 0:02:49.8]} 7... cxd4 {[%clk 0:02:58.9]} 8. Rd1 {[%clk 0:02:51.1]}
8... Be7 {[%clk 0:02:59.9]} 9. Nc3 {[%clk 0:02:49.5]} 9... O-O {[%clk
0:03:00.5]} 10. exd4 {[%clk 0:02:46.7]} 10... Na5 {[%clk 0:03:00.7]} 11. Bd3
{[%clk 0:02:47.3]} 11... b6 {[%clk 0:03:00.9]} 12. Bg5 {[%clk 0:02:20.6]} 12...
Bb7 {[%clk 0:02:52.8]} 13. Rac1 {[%clk 0:02:21.2]} 13... Rc8 {[%clk 0:02:52.7]}
14. Ne5 {[%clk 0:02:22.1]} 14... Nd5 {[%clk 0:02:52.7]} 15. Bd2 {[%clk
0:01:34.1]} 15... Nf6 {[%clk 0:02:26.7]} 16. Bb1 {[%clk 0:00:52.2]} 16... Nc6
{[%clk 0:02:24.2]} 17. Bg5 {[%clk 0:00:47.3]} 17... Nd5 {[%clk 0:02:12.8]} 18.
Bxe7 {[%clk 0:00:40.4]} 18... Ncxe7 {[%clk 0:02:11.3]} 19. Qh5 {[%clk
0:00:33.5]} 19... Ng6 {[%clk 0:02:09.2]} 20. Bxg6 {[%clk 0:00:26.5]} 20... hxg6
{[%clk 0:02:04]} 21. Qg4 {[%clk 0:00:27.7]} 21... Nxc3 {[%clk 0:01:49.2]} 22.
bxc3 {[%clk 0:00:18]} 22... Qf6 {[%clk 0:01:42.5]} 23. Nd7 {[%clk 0:00:15.9]}
23... Qe7 {[%clk 0:01:43.1]} 24. Nxf8 {[%clk 0:00:16.9]} 24... Qxf8 {[%clk
0:01:44.1]} 25. c4 {[%clk 0:00:17.7]} 25... Qa3 {[%clk 0:01:44.3]} 26. Rc2
{[%clk 0:00:14.8]} 26... Qa4 {[%clk 0:01:41]} 27. Qe2 {[%clk 0:00:15.7]} 27...
b5 {[%clk 0:01:30.2]} 28. Rdc1 {[%clk 0:00:16]} 28... bxc4 {[%clk 0:01:27.2]}
29. Rxc4 {[%clk 0:00:17.5]} 29... Rxc4 {[%clk 0:01:27.8]} 30. Qxc4 {[%clk
0:00:19]} 30... Qa3 {[%clk 0:01:22.5]} 31. Qc7 {[%clk 0:00:14.4]} 31... Bd5
{[%clk 0:01:11.6]} 32. Rc3 {[%clk 0:00:12.6]} 32... Qf8 {[%clk 0:00:59.8]} 33.
Qxa7 {[%clk 0:00:09.9]} 33... g5 {[%clk 0:00:57.9]} 34. a4 {[%clk 0:00:09.7]}
34... Qb4 {[%clk 0:00:56.5]} 35. Qc5 {[%clk 0:00:09.1]} 35... Qxa4 {[%clk
0:00:57.4]} 36. h3 {[%clk 0:00:07.7]} 36... Qd1+ {[%clk 0:00:56.1]} 37. Kh2
{[%clk 0:00:07.8]} 37... Qe2 {[%clk 0:00:57.6]} 38. Qc8+ {[%clk 0:00:07.1]}
38... Kh7 {[%clk 0:00:57.8]} 39. Rc2 {[%clk 0:00:08.4]} 39... Qe4 {[%clk
0:00:56.2]} 40. f3 {[%clk 0:00:07.5]} 40... Qf4+ {[%clk 0:00:56.8]} 41. Kg1
{[%clk 0:00:07.8]} 41... Qxd4+ {[%clk 0:00:57.4]} 42. Kh1 {[%clk 0:00:08.1]}
42... Qd1+ {[%clk 0:00:54.2]} 43. Kh2 {[%clk 0:00:09]} 43... Kg6 {[%clk
0:00:54.4]} 44. Qc3 {[%clk 0:00:09.9]} 44... f6 {[%clk 0:00:51.2]} 45. Rd2
{[%clk 0:00:10.7]} 45... Qb1 {[%clk 0:00:49.8]} 46. Qc5 {[%clk 0:00:08.6]} 46...
Qf5 {[%clk 0:00:49.4]} 47. Qc7 {[%clk 0:00:08.5]} 47... Kh7 {[%clk 0:00:48.8]}
48. Re2 {[%clk 0:00:07.7]} 48... Qd3 {[%clk 0:00:46.4]} 49. Qc2 {[%clk
0:00:05.8]} 49... Qxc2 {[%clk 0:00:47]} 50. Rxc2 {[%clk 0:00:07.5]} 50... Kg6
{[%clk 0:00:48.5]} 51. Kg3 {[%clk 0:00:08.7]} 51... e5 {[%clk 0:00:48.6]} 52.
Rc7 {[%clk 0:00:09.4]} 52... Be6 {[%clk 0:00:49.4]} 53. h4 {[%clk 0:00:09.6]}
53... gxh4+ {[%clk 0:00:50.6]} 54. Kxh4 {[%clk 0:00:11]} 54... Bf5 {[%clk
0:00:51.8]} 55. Kg3 {[%clk 0:00:11.3]} 55... Be6 {[%clk 0:00:52.9]} 56. Kf2
{[%clk 0:00:12.8]} 56... Bf5 {[%clk 0:00:54.3]} 57. Ke3 {[%clk 0:00:14.2]} 57...
Kh6 {[%clk 0:00:54.6]} 58. Kd2 {[%clk 0:00:13.4]} 58... Be6 {[%clk 0:00:54.2]}
59. Re7 {[%clk 0:00:12.6]} 59... Bd5 {[%clk 0:00:55.2]} 60. Kc3 {[%clk
0:00:12.6]} 60... g6 {[%clk 0:00:55.7]} 61. Kb4 {[%clk 0:00:13.2]} 61... Kg5
{[%clk 0:00:55.3]} 62. Kc5 {[%clk 0:00:14.4]} 62... Bb3 {[%clk 0:00:53.8]} 63.
Kd6 {[%clk 0:00:10.7]} 63... Bc4 {[%clk 0:00:53]} 64. Rh7 {[%clk 0:00:06.5]}
64... Bf1 {[%clk 0:00:53]} 65. Rh1 {[%clk 0:00:07.2]} 65... Bc4 {[%clk 0:00:48]}
66. Ke7 {[%clk 0:00:07.8]} 66... f5 {[%clk 0:00:47.4]} 67. Re1 {[%clk 0:00:06]}
67... Kf4 {[%clk 0:00:45.3]} 68. Kf6 {[%clk 0:00:07]} 68... e4 {[%clk 0:00:43]}
69. fxe4 {[%clk 0:00:05.5]} 69... fxe4 {[%clk 0:00:43.8]} 70. g4 {[%clk
0:00:03.8]} 70... g5 {[%clk 0:00:40.4]} 71. Rxe4+ {[%clk 0:00:03.3]} 71... Kxe4
{[%clk 0:00:40.9]} 72. Kxg5 {[%clk 0:00:04.9]} 72... Be2 {[%clk 0:00:42.4]} 73.
Kh6 {[%clk 0:00:06.4]} 73... Bxg4 {[%clk 0:00:44.3]} 1/2-1/2